bitfinex-derivatives/quotes_SOLF0:USTF0_20241026
["timestamp","ask_amount","ask_price","bid_price","bid_amount"]
[1729964142522,4.68,169.75,169.66,5.9936]
[1729964142722,4.68,169.75,169.67,1.274]
[1729964142927,4.68,169.75,169.69,2.9501]
[1729964142928,2.9496,169.73,169.69,2.9501]
[1729964143326,4.68,169.75,169.67,1.274]
[1729964143522,1.3155,169.77,169.67,1.274]
[1729964143728,20.70315111,169.92,169.67,1.274]
[1729964143729,1.9389,169.83,169.67,1.274]
[1729964143929,1.9389,169.83,169.68,1.3121]
[1729964144129,1.9389,169.83,169.75,2.949]
[1729964144329,1.9389,169.83,169.73,4.86]
[1729964144530,1.9389,169.83,169.72,4.86]
[1729964145033,2.9483,169.8,169.72,4.86]
[1729964145432,1.9389,169.83,169.72,4.86]
[1729964145433,2.9485,169.79,169.75,2.9491]
[1729964146935,2.9485,169.79,169.76,2.9489]
[1729964149233,4.88,169.84,169.68,1.3121]
[1729964149529,4.88,169.84,169.69,4.86]
[1729964149937,2.9489,169.77,169.73,2.9495]
[1729964150132,4.86,169.8,169.69,4.86]
[1729964150534,2.9491,169.76,169.69,4.86]
[1729964151027,4.86,169.8,169.56,57.32]
[1729964151228,2.9501,169.7,169.63,2.492]
[1729964151428,4.86,169.76,169.64,4.86]
[1729964153233,2.9498,169.72,169.69,2.9501]
[1729964153828,2.9498,169.72,169.64,4.86]
[1729964154035,2.9498,169.72,169.68,2.9502]
[1729964154738,3.2386,169.79,169.63,2.492]
[1729964155034,4.86,169.78,169.6,4.86]
[1729964155430,22.63,169.78,169.58,2.5058]
[1729964155834,40.34,169.78,169.58,2.5058]
[1729964156035,5.8984,169.75,169.58,2.5058]
[1729964156235,4.86,169.74,169.58,2.5058]
[1729964156435,7.86313276,169.74,169.59,2.9518]
[1729964156834,2.9512,169.64,169.59,2.9518]
[1729964157339,4.86,169.65,169.59,2.9518]
[1729964157739,4.86,169.65,169.58,2.5058]
[1729964158240,2.9515,169.62,169.58,2.5058]
[1729964158429,4.86,169.65,169.58,2.5058]
[1729964158840,2.9512,169.64,169.59,2.9518]
[1729964159338,4.86,169.65,169.59,2.9518]
[1729964159539,2.9513,169.63,169.59,2.9518]
[1729964161536,1.3179,169.7,169.59,4.88]
[1729964161741,1.3179,169.7,169.59,6.1009]
[1729964162140,4.88,169.72,169.59,6.1009]
[1729964162643,4.88,169.73,169.59,6.1009]
[1729964162838,4.88,169.74,169.59,6.1009]
[1729964163239,2.9503,169.69,169.59,6.1009]
[1729964163438,4.88,169.74,169.59,6.1009]
[1729964164142,2.9498,169.72,169.68,2.9503]
[1729964165145,2.9495,169.73,169.69,2.95]
[1729964165347,4.88,169.75,169.64,4.88]
[1729964165744,2.9496,169.73,169.64,4.88]
[1729964166047,4.88,169.75,169.64,4.88]
[1729964167148,2.9496,169.73,169.69,2.9501]
[1729964167348,1.215,169.77,169.64,4.88]
[1729964167349,4.88,169.77,169.64,4.88]
[1729964167548,4.88,169.77,169.65,4.88]
[1729964167849,4.88,169.77,169.66,7.3976]
[1729964168049,4.88,169.77,169.67,6.1932]
[1729964168250,2.9492,169.75,169.7,2.95]
[1729964168449,4.88,169.77,169.7,2.95]
[1729964170155,2.9492,169.75,169.7,2.95]
[1729964170756,4.88,169.77,169.7,2.95]
[1729964171051,2.9494,169.74,169.7,2.95]
[1729964175455,2.9487,169.78,169.74,2.9492]
[1729964175654,4.74,169.8,169.74,2.9492]
[1729964175859,4.74,169.8,169.67,6.1932]
[1729964176157,2.949,169.76,169.67,6.1932]
[1729964176760,2.9489,169.77,169.73,2.9494]
[1729964178062,4.74,169.8,169.71,4.74]
[1729964178559,2.9487,169.78,169.73,2.9494]
[1729964178763,4.74,169.8,169.71,4.74]
[1729964179163,2.9489,169.77,169.73,2.9494]
[1729964179358,2.9489,169.77,169.71,4.74]
[1729964179359,4.74,169.8,169.7,4.74]
[1729964179957,2.949,169.76,169.72,2.9495]
[1729964180364,4.74,169.8,169.72,2.9495]
[1729964180558,2.9487,169.78,169.72,2.9495]
[1729964180758,4.74,169.8,169.72,2.9495]
[1729964180959,4.74,169.8,169.7,4.74]
[1729964181665,2.9495,169.73,169.7,4.74]
[1729964181857,4.74,169.8,169.67,1.3132]
[1729964182058,4.74,169.79,169.67,2.9504]
[1729964182363,2.2582,169.78,169.66,7.2576]
[1729964182562,3.2233,169.78,169.66,7.2576]
[1729964182866,2.9502,169.7,169.63,4.74]
[1729964183275,4.74,169.73,169.63,4.74]
[1729964183857,4.74,169.73,169.64,2.9509]
[1729964184064,4.74,169.73,169.63,4.74]
[1729964184267,4.74,169.73,169.59,2.5086]
[1729964184967,4.74,169.73,169.59,5.4605]
[1729964185262,2.9512,169.64,169.59,2.5086]
[1729964185659,2.9512,169.64,169.6,2.9517]
[1729964186164,4.74,169.65,169.39,8.8659]
[1729964186367,4.74,169.65,169.49,8.4944]
[1729964187070,2.9513,169.63,169.58,2.952]
[1729964187269,4.74,169.65,169.53,4.74]
[1729964188066,2.9517,169.61,169.53,4.74]
[1729964188570,2.9517,169.61,169.56,2.9523]
[1729964189164,4.74,169.65,169.53,4.74]
[1729964189370,2.9514,169.62,169.57,2.9521]
[1729964193168,4.74,169.65,169.57,2.9521]
[1729964193363,2.9516,169.61,169.57,2.9521]
[1729964193558,4.74,169.61,169.49,3.7544]
[1729964193764,4.74,169.61,169.54,2.9527]
[1729964194162,2.9519,169.59,169.54,2.9527]
[1729964194669,4.74,169.61,169.54,2.9527]
[1729964194973,2.9519,169.59,169.54,2.9527]
[1729964195167,2.9519,169.59,169.55,2.9526]
[1729964195471,4.74,169.61,169.5,4.74]
[1729964195673,7.6917,169.61,169.5,4.74]
[1729964195867,4.74,169.63,169.5,4.74]
[1729964196266,4.74,169.64,169.5,4.74]
[1729964196465,1.2756,169.68,169.6,2.9516]
[1729964196765,1.2756,169.68,169.56,4.74]
[1729964197068,4.74,169.72,169.57,3.5808]
[1729964197460,2.9499,169.71,169.57,3.5808]
[1729964198469,2.9499,169.71,169.61,2.9515]
[1729964198772,2.9499,169.71,169.62,4.74]
[1729964199070,4.74,169.73,169.65,2.9508]
[1729964199270,4.74,169.73,169.66,2.4598]
[1729964199673,2.9498,169.72,169.68,2.9503]
[1729964199875,4.74,169.74,169.68,2.9503]
[1729964200167,2.9497,169.72,169.68,2.9503]
[1729964200375,4.74,169.74,169.66,2.4598]
[1729964200581,4.74,169.74,169.57,1.1922]
[1729964200877,2.9505,169.68,169.63,2.9511]
[1729964201372,4.74,169.7,169.58,7.1998]
[1729964201572,57.34,169.89,169.58,7.1998]
[1729964201773,1.3159,169.83,169.58,7.1998]
[1729964201972,2.9488,169.78,169.59,2.8921392]
[1729964202165,2.9488,169.78,169.59,8.7960392]
[1729964202367,9.0038,169.83,169.77,2.9487]
[1729964202574,6.0559,169.83,169.77,2.9487]
[1729964203077,4.74,169.93,169.78,4.74]
[1729964203269,4.74,169.92,169.78,4.74]
[1729964203471,2.9463,169.92,169.83,2.9477]
[1729964203771,3.2539,170.02,169.84,4.82]
[1729964203973,4.82,170.01,169.85,1.2236]
[1729964204169,4.82,170.0,169.88,2.9467]
[1729964204975,2.9458,169.95,169.89,2.9466]
[1729964206681,2.9461,169.93,169.86,2.9471]
[1729964206878,2.9461,169.93,169.87,4.82]
[1729964208281,4.82,169.96,169.85,2.4426]
[1729964208478,2.9467,169.89,169.85,2.4426]
[1729964208781,4.82,169.92,169.83,2.9476]
[1729964208983,2.9468,169.89,169.81,4.82]
[1729964209183,4.82,169.92,169.81,4.82]
[1729964209479,4.82,169.92,169.82,2.9479]
[1729964209783,2.947,169.88,169.82,2.9479]
[1729964209973,2.947,169.88,169.75,2.5184]
[1729964209974,4.82,169.92,169.79,2.9483]
[1729964210179,2.9475,169.85,169.78,4.82]
[1729964210983,2.9475,169.85,169.8,2.9481]
[1729964211284,2.9476,169.84,169.78,4.82]
[1729964211889,2.9467,169.89,169.84,2.9475]
[1729964212087,4.82,169.94,169.82,4.82]
[1729964212585,2.9467,169.9,169.85,2.9473]
[1729964215995,4.82,169.94,169.85,2.9473]
[1729964216196,4.82,169.94,169.83,4.1376]
[1729964216696,2.9469,169.88,169.83,1.1899]
[1729964216896,2.9469,169.88,169.84,2.9475]
[1729964218497,4.82,169.94,169.83,1.1899]
[1729964218797,2.9467,169.89,169.85,2.9474]
[1729964220200,4.82,169.9,169.83,1.1899]
[1729964220500,4.82,169.9,169.75,1.2667]
[1729964220501,4.82,169.89,169.79,4.82]
[1729964221597,2.9474,169.86,169.82,2.9479]
[1729964221801,2.9474,169.86,169.79,4.82]
[1729964222398,2.9474,169.86,169.81,2.9479]
[1729964224999,4.82,169.89,169.79,4.82]
[1729964225302,2.9467,169.89,169.85,2.9474]
[1729964226804,1.2209,169.92,169.84,2.454]
[1729964227005,4.82,169.94,169.84,2.454]
[1729964227502,2.9464,169.91,169.87,2.9469]
[1729964229805,4.82,169.94,169.84,3.663]
[1729964230007,2.9464,169.91,169.87,2.9471]
[1729964230200,4.82,169.94,169.84,3.663]
[1729964230805,4.82,169.96,169.84,3.663]
[1729964231099,2.9462,169.93,169.89,2.9467]
[1729964231702,2.9462,169.92,169.89,2.9467]
[1729964231903,4.82,169.97,169.88,2.9468]
[1729964232204,2.947,169.88,169.84,2.454]
[1729964232399,4.82,169.92,169.84,2.454]
[1729964232607,4.82,169.92,169.85,2.9472]
[1729964232903,4.82,169.92,169.84,2.454]
[1729964233105,2.947,169.88,169.84,5.4015]
[1729964233302,2.947,169.88,169.84,2.454]
[1729964234305,2.947,169.88,169.85,2.9474]
[1729964234899,4.82,169.92,169.84,2.454]
[1729964235102,4.82,169.92,169.81,4.8]
[1729964235602,2.9473,169.86,169.82,2.9479]
[1729964236204,4.82,169.92,169.81,4.8]
[1729964236906,2.9469,169.89,169.84,2.9475]
[1729964237107,2.9469,169.89,169.81,4.8]
[1729964237508,2.9469,169.89,169.85,2.9473]
[1729964237707,2.9469,169.88,169.85,2.9473]
[1729964239110,4.82,169.92,169.81,4.8]
[1729964239304,2.9467,169.9,169.86,2.9472]
[1729964239512,4.82,169.92,169.86,2.9472]
[1729964239911,2.9465,169.91,169.86,2.9472]
[1729964240103,4.82,169.92,169.86,2.9472]
[1729964240512,2.9467,169.9,169.86,2.9472]
[1729964240711,4.82,169.92,169.86,2.9472]
[1729964241110,2.9467,169.9,169.86,2.9472]
[1729964241712,2.9467,169.9,169.87,2.947]
[1729964242613,2.9467,169.89,169.85,2.9472]
[1729964243211,4.8,169.94,169.85,2.9472]
[1729964243413,2.9469,169.88,169.85,2.9472]
[1729964243607,4.8,169.94,169.76,2.5421]
[1729964243809,7.81221321,169.94,169.77,4.8]
[1729964244008,2.948,169.82,169.78,4.8]
[1729964244407,1.2219,169.87,169.79,2.9483]
[1729964244610,1.2219,169.87,169.78,4.8]
[1729964244811,1.2219,169.87,169.76,2.5421]
[1729964245113,1.2219,169.87,169.77,4.8]
[1729964245615,2.9481,169.82,169.78,2.9485]
[1729964246522,2.9481,169.82,169.79,2.9484]
[1729964246813,1.2219,169.87,169.77,4.8]
[1729964247017,4.8,169.9,169.83,2.9476]
[1729964247817,2.9471,169.87,169.83,2.9476]
[1729964248019,4.8,169.9,169.81,4.8]
[1729964248319,2.9471,169.87,169.81,4.8]
[1729964250221,2.9471,169.87,169.83,2.9476]
[1729964256220,4.8,169.9,169.81,4.8]
[1729964256428,4.8,169.9,169.78,4.8]
[1729964256626,1.2062,169.89,169.78,4.8]
[1729964257325,2.9477,169.84,169.81,2.9481]
[1729964257726,1.2062,169.89,169.78,4.8]
[1729964258026,2.9479,169.83,169.8,2.9483]
[1729964258928,2.9477,169.84,169.81,2.9481]
[1729964259125,1.2062,169.89,169.78,4.8]
[1729964259324,1.2062,169.89,169.76,2.5421]
[1729964259520,1.2062,169.89,169.76,7.3421]
[1729964259725,1.2062,169.89,169.76,2.5421]
[1729964260027,1.2062,169.89,169.76,1.2645]
[1729964260224,2.9482,169.81,169.77,2.9487]
[1729964261823,2.9482,169.81,169.76,1.2645]
[1729964262028,2.948,169.82,169.76,1.2645]
[1729964262631,4.8,169.83,169.8,2.9481]
[1729964263025,2.9477,169.84,169.8,2.9481]
[1729964263225,4.74,169.86,169.77,1.2208]
[1729964263628,4.74,169.88,169.78,4.74]
[1729964263927,2.9472,169.87,169.83,2.9477]
[1729964264532,2.9472,169.87,169.84,2.9476]
[1729964264831,4.74,169.88,169.78,4.74]
[1729964265031,7.6869,169.88,169.85,2.9474]
[1729964265228,4.74,169.91,169.82,4.74]
[1729964265531,2.9469,169.89,169.85,2.9473]
[1729964265931,4.74,169.91,169.85,2.9473]
[1729964266533,2.9469,169.88,169.84,2.9475]
[1729964273838,4.74,169.91,169.82,4.74]
[1729964274539,2.9471,169.87,169.83,2.9476]
[1729964274847,4.74,169.91,169.82,4.74]
[1729964275243,2.9471,169.87,169.84,2.9475]
[1729964275641,4.74,169.91,169.82,4.74]
[1729964275846,4.74,169.91,169.82,2.9478]
[1729964276047,4.74,169.9,169.82,2.9478]
[1729964276347,2.9474,169.86,169.82,2.9478]
[1729964276645,2.9474,169.86,169.79,4.74]
[1729964277045,2.9474,169.86,169.82,2.9478]
[1729964277650,2.9474,169.85,169.82,2.9478]
[1729964278249,4.74,169.9,169.79,4.74]
[1729964278450,2.9475,169.85,169.82,2.9479]
[1729964279051,2.9475,169.85,169.79,4.74]
[1729964279346,2.9475,169.85,169.81,2.948]
[1729964279544,2.9475,169.85,169.77,1.2208]
[1729964279545,4.74,169.86,169.77,1.2208]
[1729964280347,1.217,169.85,169.76,8.9534]
[1729964280848,1.217,169.85,169.75,2.949]
[1729964281050,2.92576557,169.84,169.72,4.74]
[1729964281248,2.948,169.82,169.72,4.74]
[1729964281452,4.74,169.83,169.77,2.9487]
[1729964281842,2.9481,169.81,169.77,2.9487]
[1729964284047,2.9483,169.8,169.76,2.9489]
[1729964284849,4.74,169.83,169.71,1.2722]
[1729964285156,2.9489,169.77,169.73,2.9494]
[1729964285349,4.74,169.79,169.71,1.2722]
[1729964285544,4.74,169.78,169.71,1.2722]
[1729964285745,4.74,169.78,169.71,4.222]
[1729964286254,4.14097296,169.85,169.71,1.2722]
[1729964286455,4.74,169.84,169.71,1.2722]
[1729964286955,2.9489,169.77,169.71,1.2722]
[1729964287352,4.74,169.79,169.71,1.2722]
[1729964287353,4.74,169.82,169.71,6.0122]
[1729964288659,2.9484,169.8,169.76,2.9488]
[1729964292359,2.9484,169.8,169.76,2.9489]
[1729964295155,2.9484,169.8,169.74,2.9491]
[1729964295354,2.9484,169.8,169.71,6.0122]
[1729964295657,2.9484,169.8,169.74,2.9491]
[1729964295859,2.9478,169.83,169.71,6.0122]
[1729964296051,7.6278,169.83,169.71,6.0122]
[1729964296251,4.68,169.83,169.71,6.0122]
[1729964296454,4.68,169.83,169.77,2.9487]
[1729964296955,2.9481,169.82,169.77,2.9487]
[1729964297354,4.68,169.83,169.77,2.9487]
[1729964297560,4.68,169.83,169.75,4.68]
[1729964297759,4.68,169.83,169.74,2.9493]
[1729964297964,2.9486,169.79,169.74,2.9493]
[1729964298558,4.68,169.83,169.72,4.68]
[1729964298862,4.68,169.83,169.71,1.2722]
[1729964299062,1.9314,169.82,169.71,1.2722]
[1729964299264,4.89034945,169.82,169.71,1.2722]
[1729964299563,2.9491,169.76,169.71,4.222]
[1729964299957,4.68,169.77,169.71,1.2722]
[1729964300164,2.9494,169.74,169.7,1.2362]
[1729964300358,4.68,169.77,169.68,1.2379]
[1729964300857,2.9495,169.74,169.68,4.1881]
[1729964301662,2.9496,169.73,169.68,4.1881]
[1729964302163,2.9496,169.73,169.68,2.9502]
[1729964302866,4.68,169.77,169.67,5.9743]
[1729964303066,2.9494,169.74,169.69,2.9502]
[1729964303465,4.68,169.77,169.69,2.9502]
[1729964303661,2.9495,169.73,169.69,2.9502]
[1729964309472,2.9495,169.73,169.7,2.95]
[1729964312368,4.68,169.77,169.68,1.2869]
[1729964312574,1.2974,169.76,169.64,4.68]
[1729964312973,2.95,169.71,169.67,2.9504]
[1729964313164,4.68,169.75,169.64,4.68]
[1729964313364,1.2974,169.81,169.64,4.68]
[1729964313566,4.68,169.8,169.64,4.68]
[1729964314575,2.9489,169.75,169.71,2.9495]
[1729964316777,1.2974,169.81,169.68,4.68]
[1729964316977,4.68,169.82,169.69,1.2443]
[1729964317170,4.68,169.82,169.7,1.2072]
[1729964317370,7.6277,169.82,169.7,2.484]
[1729964317573,4.68,169.82,169.7,2.484]
[1729964318070,4.68,169.82,169.76,2.9486]
[1729964318071,2.9479,169.81,169.76,2.9486]
[1729964319076,2.9479,169.81,169.74,4.68]
[1729964319475,2.9479,169.81,169.76,2.9485]
[1729964320177,7.6276,169.82,169.78,2.9482]
[1729964320675,4.68,169.82,169.74,4.68]
[1729964320980,2.948,169.81,169.74,4.68]
[1729964321683,2.948,169.81,169.76,2.9487]
[1729964321878,2.948,169.8,169.76,2.9487]
[1729964323583,2.9485,169.78,169.74,2.949]
[1729964323784,4.68,169.82,169.71,4.7]
[1729964324084,2.9485,169.77,169.73,2.949]
[1729964324482,4.68,169.82,169.71,4.7]
[1729964324786,2.9482,169.79,169.71,4.7]
[1729964325485,2.9486,169.77,169.73,2.9492]
[1729964325785,4.68,169.82,169.73,2.9492]
[1729964326085,2.9487,169.76,169.73,2.9492]
[1729964326385,4.68,169.82,169.73,2.9492]
[1729964326881,2.9485,169.77,169.73,2.9492]
[1729964327184,4.68,169.82,169.71,4.7]
[1729964327586,4.68,169.82,169.7,2.484]
[1729964327986,2.9488,169.76,169.72,2.9494]
[1729964328282,2.9488,169.76,169.7,2.484]
[1729964328587,6.04593381,169.85,169.7,2.484]
[1729964328788,4.7,169.84,169.7,2.484]
[1729964330087,2.948,169.8,169.7,2.484]
[1729964331388,2.948,169.8,169.77,2.9485]
[1729964333884,4.7,169.84,169.73,4.7]
[1729964335284,2.9481,169.8,169.76,2.9487]
[1729964335790,4.7,169.84,169.76,2.9487]
[1729964335991,2.9482,169.79,169.76,2.9487]
[1729964337991,4.7,169.84,169.73,4.7]
[1729964338188,2.9483,169.79,169.75,2.9488]
[1729964338592,2.9483,169.79,169.73,4.7]
[1729964338988,4.7,169.84,169.73,4.7]
[1729964339188,2.948,169.8,169.76,2.9486]
[1729964343692,1.1973,169.85,169.73,4.7]
[1729964343894,2.9476,169.83,169.79,2.9481]
[1729964344195,4.7,169.84,169.79,2.9481]
[1729964344797,4.7,169.84,169.7,2.484]
[1729964344997,4.7,169.84,169.71,4.7]
[1729964346302,2.9481,169.8,169.76,2.9486]
[1729964349507,2.9481,169.8,169.76,2.9486]
[1729964349708,2.9482,169.79,169.76,2.9486]
[1729964351612,2.9478,169.82,169.78,2.9482]
[1729964351806,57.28,169.86,169.7,2.484]
[1729964351807,57.28,169.86,169.75,4.7]
[1729964352010,4.7,169.86,169.76,1.3049]
[1729964352505,2.9474,169.84,169.8,2.9479]
[1729964353906,2.948,169.81,169.77,5.4669]
[1729964354100,4.7,169.86,169.77,2.5184]
[1729964354411,2.9474,169.84,169.78,2.9482]
[1729964354610,4.7,169.86,169.78,2.9482]
[1729964355012,2.9477,169.82,169.78,2.9482]
[1729964356312,4.7,169.86,169.77,2.5184]
[1729964356914,2.9474,169.84,169.8,2.9478]
[1729964357116,4.7,169.86,169.77,2.5184]
[1729964357813,2.9476,169.83,169.8,2.948]
[1729964360115,4.7,169.86,169.77,2.5184]
[1729964360304,2.9473,169.84,169.81,2.9478]
[1729964361819,2.9475,169.83,169.79,2.948]
[1729964362418,2.9477,169.82,169.79,2.948]
[1729964362615,4.74,169.82,169.67,57.28]
[1729964362818,4.74,169.82,169.69,3.7843]
[1729964363014,2.9482,169.79,169.75,2.9487]
[1729964363221,1.3111,169.81,169.72,4.74]
[1729964363514,2.948,169.8,169.75,2.9488]
[1729964365920,4.74,169.82,169.75,2.9488]
[1729964366122,2.9482,169.79,169.75,2.9488]
[1729964366325,4.74,169.82,169.7,4.74]
[1729964366523,2.9487,169.77,169.7,4.74]
[1729964366717,1.2632,169.81,169.7,4.74]
[1729964366918,1.2632,169.81,169.72,2.9492]
[1729964367320,1.2632,169.81,169.72,2.9493]
[1729964367820,2.9489,169.75,169.72,2.9493]
[1729964370022,137.62202595,169.96,169.72,4.74]
[1729964370224,0.9701,169.91,169.72,4.74]
[1729964370423,3.92266658,169.91,169.72,4.74]
[1729964370622,0.9701,169.91,169.78,2.9482]
[1729964370823,3.97045038,169.91,169.78,2.9482]
[1729964371023,2.9476,169.83,169.78,2.9482]
[1729964371529,2.9476,169.83,169.79,2.9481]
[1729964377929,4.74,169.84,169.7,1.2736]
[1729964378134,2.948,169.8,169.76,2.9486]
[1729964378334,1.2861,169.83,169.71,4.74]
[1729964378629,2.9479,169.81,169.74,2.9489]
[1729964378834,2.9479,169.81,169.71,4.74]
[1729964379942,1.2861,169.83,169.71,4.74]
[1729964380235,2.9482,169.79,169.71,4.74]
[1729964381235,2.9482,169.79,169.75,2.9487]
[1729964383227,4.74,169.79,169.69,2.4872]
[1729964383632,2.949,169.74,169.71,2.9494]
[1729964384135,2.9487,169.76,169.69,5.437]
[1729964384436,4.74,169.79,169.69,5.437]
[1729964384738,2.9494,169.72,169.69,1.2461]
[1729964387034,2.9492,169.73,169.69,4.196]
[1729964388037,2.9492,169.73,169.69,1.2461]
[1729964388038,2.9493,169.73,169.69,1.2461]
[1729964389740,4.88,169.75,169.65,4.88]
[1729964390046,2.9495,169.72,169.68,2.95]
[1729964391442,4.88,169.75,169.65,4.88]
[1729964391640,2.949,169.75,169.71,2.9494]
[1729964391840,2.949,169.75,169.65,4.88]
[1729964392142,2.949,169.75,169.7,2.9496]
[1729964392338,2.9487,169.76,169.65,4.88]
[1729964392639,4.88,169.77,169.65,4.88]
[1729964392841,7.8285,169.77,169.65,4.88]
[1729964393740,7.8285,169.77,169.72,2.9492]
[1729964394846,4.88,169.77,169.69,4.88]
[1729964395145,4.88,169.77,169.7,1.2773]
[1729964395545,7.8287,169.77,169.72,2.9492]
[1729964396143,4.88,169.77,169.7,1.2773]
[1729964396343,2.9493,169.73,169.69,2.9499]
[1729964396944,2.949,169.74,169.69,2.9498]
[1729964398046,4.88,169.77,169.69,2.9498]
[1729964398245,2.9492,169.74,169.7,2.9496]
[1729964400645,2.9492,169.74,169.66,141.4871292]
[1729964400843,2.9492,169.74,169.71,2.9495]
[1729964401248,2.9492,169.74,169.66,141.4871292]
[1729964401451,2.9492,169.74,169.7,2.9497]
[1729964402045,2.9492,169.74,169.71,2.9495]
[1729964402644,2.9488,169.76,169.72,2.9493]
[1729964402947,3.87646438,169.82,169.66,141.4871292]
[1729964403147,2.948,169.8,169.77,2.9484]
[1729964403347,4.88,169.81,169.71,4.88]
[1729964403542,4.88,169.81,169.72,2.4395]
[1729964403747,2.9483,169.79,169.75,2.9488]
[1729964403958,4.88,169.81,169.75,2.9488]
[1729964404250,2.9488,169.76,169.72,5.3888]
[1729964405148,4.88,169.81,169.72,5.3888]
[1729964405951,4.88,169.81,169.72,2.4395]
[1729964406151,4.88,169.81,169.73,2.9492]
[1729964406550,2.9482,169.79,169.73,2.9492]
[1729964406750,4.88,169.81,169.73,2.9492]
[1729964407050,2.9487,169.77,169.73,2.9492]
[1729964407653,4.88,169.81,169.72,2.4395]
[1729964408453,2.9485,169.78,169.75,2.9488]
[1729964408653,2.9485,169.78,169.72,2.4395]
[1729964409052,2.9485,169.78,169.75,2.9488]
[1729964413966,4.88,169.81,169.72,2.4395]
[1729964414166,4.88,169.81,169.75,2.9488]
[1729964414167,2.9484,169.78,169.75,2.9488]
[1729964414763,4.88,169.81,169.75,2.9488]
[1729964415165,4.88,169.81,169.73,2.9491]
[1729964416266,2.9486,169.77,169.73,2.9491]
[1729964416971,4.88,169.81,169.73,2.9491]
[1729964417165,2.9487,169.76,169.73,2.9491]
[1729964417562,2.9489,169.75,169.72,5.3888]
[1729964417867,4.88,169.81,169.72,1.2333]
[1729964418068,4.88,169.81,169.68,6.1311]
[1729964418261,2.9491,169.74,169.7,2.9496]
[1729964418862,2.9491,169.74,169.68,7.3588]
[1729964418863,4.86,169.77,169.68,6.0877]
[1729964419065,2.9493,169.73,169.69,2.9498]
[1729964422268,1.2026,169.76,169.69,2.9498]
[1729964422568,2.9491,169.74,169.68,1.2277]
[1729964422769,1.2026,169.76,169.68,1.2277]
[1729964423764,1.2026,169.76,169.56,5.9042]
[1729964424069,1.3115,169.75,169.61,4.86]
[1729964424265,2.9496,169.71,169.64,2.9506]
[1729964424461,4.86,169.7,169.64,2.9506]
[1729964424666,4.86,169.7,169.61,4.86]
[1729964425063,4.86,169.7,169.58,3.7284]
[1729964425268,2.9508,169.64,169.59,2.9516]
[1729964425468,4.86,169.66,169.58,2.5015]
[1729964426073,4.86,169.66,169.56,2.952]
[1729964426372,4.86,169.66,169.55,170.60595561]
[1729964426572,4.86,169.66,169.52,2.9528]
[1729964427071,2.9514,169.61,169.53,2.9526]
[1729964427370,4.86,169.6,169.53,2.9526]
[1729964430374,7.8115,169.6,169.53,2.9526]
[1729964430574,4.86,169.6,169.52,2.9528]